fUSD/lending_fUSD_20260412
["ID","MTS","AMOUNT","RATE_DAILY","PERIOD"]
[420329235,1775971892221,-152.913452,0.00042465,120]
[420329236,1775971892236,-152.0,0.00042466,2]
[420329237,1775971892256,-172.0,0.00042466,2]
[420329238,1775971892269,-443.12984243,0.0004249,7]
[420329239,1775971892291,-202.2936668,0.00042499,60]
[420329240,1775971892306,-301.0,0.00042499,60]
[420329241,1775971892316,-192.0,0.000425,120]
[420329242,1775971892344,-3063.47287734,0.000425,120]
[420329243,1775971892356,-1433.95,0.000425,120]
[420329244,1775971892501,-1433.95,0.000425,120]
[420329245,1775971892511,-1434.18,0.000425,30]
[420329246,1775971892523,-30000.0,0.000425,120]
[420329247,1775971892538,-36270.00558393,0.000425,120]
[420329248,1775971892548,-1433.95,0.000425,60]
[420329249,1775971892558,-1215.68,0.000425,120]
[420329250,1775971892574,-2500.0,0.000425,120]
[420329251,1775971892588,-500.0,0.000425,120]
[420329252,1775971892598,-306.82220741,0.0004251,120]
[420329253,1775971892616,-20649.65577191,0.00042523,20]
[420329254,1775971892632,-1601.48,0.0004257,120]
[420329255,1775971892642,-500.0,0.00042595,45]
[420329256,1775971892665,-500.0,0.00042595,45]
[420329257,1775971892682,-151.0,0.000426,120]
[420329258,1775971892702,-872.12,0.000426,79]
[420329259,1775971892719,-157.08828878,0.00042605,2]
[420329260,1775971892734,-1757.32159937,0.00042676,120]
[420329261,1775971892763,-2167.24107137,0.00042676,120]
[420329262,1775971892775,-23717.72499143,0.000427,30]
[420329263,1775971892803,-1000.0,0.000427,120]
[420329264,1775971892815,-171.8167794,0.000427,120]
[420329265,1775971892837,-150.0,0.00042704,120]
[420329266,1775971892855,-825.0,0.00042721,30]
[420329267,1775971892867,-500.0,0.00042739,8]
[420329268,1775971892903,-1626.02,0.00042739,8]
[420329269,1775971892922,-1442.42,0.00042739,8]
[420329270,1775971892932,-2122.61,0.00042739,8]
[420329271,1775971892945,-847.7,0.00042739,8]
[420329272,1775971892967,-500.0,0.00042739,8]
[420329273,1775971892979,-637.86381037,0.00042739,8]
[420329274,1775971892990,-1688.37,0.00042739,8]
[420329275,1775971893008,-651.55,0.00042739,8]
[420329276,1775971893018,-813.07,0.00042739,8]
[420329277,1775971893028,-711.78,0.00042739,8]
[420329278,1775971893047,-552.86,0.00042739,8]
[420329279,1775971893059,-560.42,0.00042739,8]
[420329280,1775971893068,-1100.29,0.00042739,8]
[420329281,1775971893088,-500.0,0.00042739,8]
[420329282,1775971893098,-1444.55,0.00042739,8]
[420329283,1775971893108,-624.84,0.00042739,8]
[420329284,1775971893121,-1463.92,0.00042739,8]
[420329285,1775971893138,-1146.76,0.00042739,8]
[420329286,1775971893151,-675.5,0.00042739,8]
[420329287,1775971893163,-887.48,0.00042739,8]
[420329288,1775971893177,-500.0,0.00042739,8]
[420329289,1775971893199,-1086.28,0.00042739,8]
[420329290,1775971893209,-2038.18,0.00042739,8]
[420329291,1775971893226,-516.79,0.00042739,8]
[420329292,1775971893240,-928.97,0.00042739,8]
[420329293,1775971893258,-592.59,0.00042739,8]
[420329294,1775971893277,-502.42,0.00042739,8]
[420329295,1775971893289,-1810.69,0.00042739,8]
[420329296,1775971893310,-527.58,0.00042739,8]
[420329297,1775971893321,-2182.35,0.00042739,8]
[420329298,1775971893334,-523.91600205,0.00042739,8]
[420329299,1775971893355,-4000.0,0.0004274,14]
[420329300,1775971893366,-500.0,0.0004274,45]
[420329301,1775971893378,-1000.0,0.0004275,120]
[420329302,1775971893390,-150.0,0.00042763,120]
[420329303,1775971893409,-5000.0,0.00042798,30]
[420329304,1775971893422,-17252.0866,0.000428,120]
[420329305,1775971893439,-1025531.20266302,0.000428,120]
[420329306,1775971893452,-6302.26321126,0.000428,120]
[420329307,1775971893463,-200.0,0.000428,15]
[420329308,1775971893487,-150.0,0.00042809,120]
[420329309,1775971893501,-150.0,0.00042822,120]
[420329310,1775971893518,-509.0,0.00042853,19]
[420329311,1775971893544,-1000.0,0.0004287,120]
[420329312,1775971893562,-1000.0,0.0004287,120]
[420329313,1775971893594,-1000.0,0.0004287,120]
[420329314,1775971893607,-629.08,0.0004287,120]
[420329315,1775971893632,-500.0,0.00042877,45]
[420329316,1775971893647,-157.08828878,0.00042879,2]
[420329317,1775971893659,-740.0,0.00042888,2]
[420329318,1775971893676,-96704.98953373,0.00042888,3]
[420329319,1775971893687,-200.0,0.000429,18]
[420329320,1775971893699,-13023.0,0.000429,30]
[420329321,1775971893715,-200.0,0.000429,15]
[420329322,1775971893725,-150.0,0.00042922,120]
[420329323,1775971893737,-201.0,0.0004295,30]
[420329324,1775971893747,-8166.99842183,0.00042964,120]
[420329325,1775971893763,-1000.0,0.0004297,120]
[420329326,1775971893774,-1000.0,0.0004297,120]
[420329327,1775971893784,-1000.0,0.0004297,120]
[420329328,1775971893795,-1000.0,0.0004297,120]
[420329329,1775971893809,-1000.0,0.0004297,120]
[420329330,1775971893820,-1491.6264975,0.00042992,28]
[420329331,1775971893830,-475.34,0.00042999,120]
[420329332,1775971893847,-723246.15418415,0.00043,30]
[420329333,1775971893861,-1000.0,0.00043,120]
[420329334,1775971893871,-1000.0,0.00043,120]
[420329335,1775971893881,-1000.0,0.00043,120]
[420329336,1775971893897,-695.53480742,0.00043,120]
[420329337,1775971893907,-10000.0,0.00043,120]
[420329338,1775971893916,-3000.0,0.00043,120]
[420329339,1775971893926,-1011.0,0.00043,120]
[420329340,1775971893943,-2000.0,0.00043,120]
[420329341,1775971893952,-2000.0,0.00043,120]
[420329342,1775971893962,-617.492389,0.00043,120]
[420329343,1775971893975,-50000.0,0.00043,50]
[420329344,1775971893987,-17674.13062069,0.00043,2]
[420329345,1775971893997,-3031.73592536,0.00043,120]
[420329346,1775971894007,-148832.85,0.00043,7]
[420329347,1775971894020,-500.0,0.00043,45]
[420329348,1775971894033,-27512.75659444,0.00043,120]
[420329349,1775971894042,-9053.55277268,0.00043,120]
[420329350,1775971894054,-232.54954894,0.00043,120]
[420329351,1775971894072,-3302.92538963,0.00043,30]
[420329352,1775971894084,-1149.76,0.00043,120]
[420329353,1775971894094,-150.0,0.00043,120]
[420329354,1775971894104,-1000.0,0.00043,30]
[420329355,1775971894119,-10000.0,0.00043,90]
[420329356,1775971894132,-22210.88040162,0.00043,30]
[420329357,1775971894142,-18357.0,0.00043,120]
[420329358,1775971894152,-3454.94717352,0.00043,2]
[420329359,1775971894162,-152.59654166,0.00043,120]
[420329360,1775971894176,-2000.0,0.00043,120]
[420329361,1775971894185,-1000.0,0.00043,120]
[420329362,1775971894195,-3700.0,0.00043,120]
[420329363,1775971894204,-370.0,0.00043,2]
[420329364,1775971894217,-3651.52053752,0.00043,50]
[420329365,1775971894226,-500.0,0.00043,120]
[420329366,1775971894236,-20000.0,0.00043,30]
[420329367,1775971894246,-70000.0,0.00043,70]
[420329368,1775971894258,-192.0,0.00043,120]
[420329369,1775971894270,-12500.0,0.00043,120]
[420329370,1775971894281,-12500.0,0.00043,120]
[420329371,1775971894291,-12500.0,0.00043,120]
[420329372,1775971894301,-12500.0,0.00043,120]
[420329373,1775971894316,-12500.0,0.00043,120]
[420329374,1775971894325,-12500.0,0.00043,120]
[420329375,1775971894336,-12500.0,0.00043,120]
[420329376,1775971894346,-358.34,0.00043,120]
[420329377,1775971894367,-387.24,0.00043,120]
[420329378,1775971894377,-5000.0,0.00043,61]
[420329379,1775971894391,-777.3,0.00043,120]
[420329380,1775971894417,-149986.0,0.00043,61]
[420329381,1775971894427,-150000.0,0.00043,61]
[420329382,1775971894467,-342.27,0.00043,120]
[420329383,1775971894484,-2310.58,0.00043,120]
[420329384,1775971894493,-4655.2,0.00043,120]
[420329385,1775971894514,-2895.43,0.00043,120]
[420329386,1775971894528,-1309.11,0.00043,120]
[420329387,1775971894540,-316.08,0.00043,120]
[420329388,1775971894559,-3652.05,0.00043,120]
[420329389,1775971894572,-6548.75,0.00043,30]
[420329390,1775971894583,-320.52,0.00043,120]
[420329391,1775971894608,-2500.0,0.00043,120]
[420329392,1775971894622,-3500.0,0.00043,120]
[420329393,1775971894652,-500.0,0.00043,120]
[420329394,1775971894675,-825.0,0.00043004,60]
[420329395,1775971894695,-500.0,0.00043013,8]
[420329396,1775971894715,-1626.02,0.00043013,8]
[420329397,1775971894734,-1442.42,0.00043013,8]
[420329398,1775971894749,-2122.61,0.00043013,8]
[420329399,1775971894762,-847.7,0.00043013,8]
[420329400,1775971894778,-500.0,0.00043013,8]
[420329401,1775971894793,-1688.37,0.00043013,8]
[420329402,1775971894806,-651.55,0.00043013,8]
[420329403,1775971894818,-813.07,0.00043013,8]
[420329404,1775971894831,-711.78,0.00043013,8]
[420329405,1775971894843,-552.86,0.00043013,8]
[420329406,1775971894854,-560.42,0.00043013,8]
[420329407,1775971894864,-1100.29,0.00043013,8]
[420329408,1775971894881,-500.0,0.00043013,8]
[420329409,1775971894890,-1444.55,0.00043013,8]
[420329410,1775971894899,-624.84,0.00043013,8]
[420329411,1775971894913,-1463.92,0.00043013,8]
[420329412,1775971894929,-1146.76,0.00043013,8]
[420329413,1775971894940,-675.5,0.00043013,8]
[420329414,1775971894952,-887.48,0.00043013,8]
[420329415,1775971894974,-500.0,0.00043013,8]
[420329416,1775971894985,-1086.28,0.00043013,8]
[420329417,1775971894995,-2038.18,0.00043013,8]
[420329418,1775971895017,-516.79,0.00043013,8]
[420329419,1775971895028,-928.97,0.00043013,8]
[420329420,1775971895039,-592.59,0.00043013,8]
[420329421,1775971895060,-502.42,0.00043013,8]
[420329422,1775971895070,-1810.69,0.00043013,8]
[420329423,1775971895080,-527.58,0.00043013,8]
[420329424,1775971895097,-2182.35,0.00043013,8]
[420329425,1775971895110,-564.747028,0.0004302,10]
[420329426,1775971895121,-20000.0,0.0004305,120]
[420329427,1775971895136,-160.72,0.00043053,30]
[420329428,1775971895159,-45000.0,0.0004306,120]
[420329429,1775971895168,-5000.0,0.0004306,120]
[420329430,1775971895193,-150.0,0.00043062,120]
[420329431,1775971895207,-5000.0,0.0004307,120]
[420329432,1775971895218,-5000.0,0.00043071,120]
[420329433,1775971895249,-5000.0,0.00043072,120]
[420329434,1775971895259,-5000.0,0.00043073,120]
[420329435,1775971895292,-5000.0,0.00043074,120]
[420329436,1775971895302,-5000.0,0.00043075,120]
[420329437,1775971895332,-5000.0,0.00043076,120]
[420329438,1775971895341,-5000.0,0.00043077,120]
[420329439,1775971895356,-410.35815754,0.00043083,120]
[420329440,1775971895375,-3339299.6552,0.00043083,30]
[420329441,1775971895385,-389.65,0.00043092,120]
[420329442,1775971895394,-5888.42519591,0.000431,120]
[420329443,1775971895406,-235.86043271,0.000431,120]
[420329444,1775971895420,-958.47253548,0.000431,120]
[420329445,1775971895430,-224.85775604,0.000431,120]
[420329446,1775971895442,-486.17825119,0.000431,120]
[420329447,1775971895454,-214.9419965,0.000431,120]
[420329448,1775971895464,-1384.81985575,0.000431,120]
[420329449,1775971895473,-1132.86890187,0.000431,120]
[420329450,1775971895483,-497.40007772,0.000431,120]
[420329451,1775971895496,-413.76120468,0.000431,120]
[420329452,1775971895505,-1442.21675386,0.000431,120]
[420329453,1775971895515,-2410.91104952,0.000431,120]
[420329454,1775971895863,-1506.58826754,0.000431,120]
[420329455,1775971895873,-1372.10317768,0.000431,120]
[420329456,1775971895883,-1776.5850185,0.000431,120]
[420329457,1775971895897,-151.0,0.00043109,120]
[420329458,1775971895914,-151.0,0.00043109,120]
[420329459,1775971895924,-151.0,0.00043109,120]
[420329460,1775971895933,-151.0,0.00043109,120]
[420329461,1775971895957,-151.0,0.00043109,120]
[420329462,1775971895967,-151.0,0.00043109,120]
[420329463,1775971895976,-151.0,0.00043109,60]
[420329464,1775971895996,-151.0,0.00043109,120]
[420329465,1775971896006,-151.0,0.00043109,120]
[420329466,1775971896016,-239.399502,0.00043109,120]
[420329467,1775971896026,-151.0,0.00043109,120]
[420329468,1775971896039,-155.146573,0.00043109,120]
[420329469,1775971896048,-151.0,0.00043109,120]
[420329470,1775971896058,-872.12,0.0004312,85]
[420329471,1775971896068,-500.0,0.00043126,120]
[420329472,1775971896081,-1757.32159937,0.0004313,120]
[420329473,1775971896091,-2167.24107137,0.0004313,120]
[420329474,1775971896102,-203.85838449,0.0004314,120]
[420329475,1775971896112,-150.0,0.00043145,120]
[420329476,1775971896123,-15000.0,0.0004315,120]
[420329477,1775971896132,-157.08828878,0.00043153,2]
[420329478,1775971896142,-987.2,0.0004317,7]
[420329479,1775971896155,-1000.0,0.00043175,120]
[420329480,1775971896165,-151.000015,0.00043178,120]
[420329481,1775971896174,-389.66,0.00043192,120]
[420329482,1775971896184,-5000.0,0.00043229,30]
[420329483,1775971896201,-500.0,0.0004324,45]
[420329484,1775971896211,-15000.0,0.0004325,120]
[420329485,1775971896226,-153.87,0.00043265,30]
[420329486,1775971896239,-825.0,0.00043286,60]
[420329487,1775971896250,-500.0,0.00043287,120]
[420329488,1775971896265,-500.0,0.00043287,120]
[420329489,1775971896280,-500.0,0.00043287,120]
[420329490,1775971896294,-500.0,0.00043287,120]
[420329491,1775971896309,-500.0,0.00043287,120]
[420329492,1775971896328,-500.0,0.00043287,120]
[420329493,1775971896338,-558.6401509,0.00043287,120]
[420329494,1775971896370,-500.0,0.00043287,8]
[420329495,1775971896384,-1626.02,0.00043287,8]
[420329496,1775971896397,-1442.42,0.00043287,8]
[420329497,1775971896425,-2122.61,0.00043287,8]
[420329498,1775971896435,-847.7,0.00043287,8]
[420329499,1775971896459,-551.90162846,0.00043287,8]
[420329500,1775971896473,-1688.37,0.00043287,8]
[420329501,1775971896482,-651.55,0.00043287,8]
[420329502,1775971896513,-813.07,0.00043287,8]
[420329503,1775971896524,-711.78,0.00043287,8]
[420329504,1775971896544,-552.86,0.00043287,8]
[420329505,1775971896561,-560.42,0.00043287,8]
[420329506,1775971896570,-1100.29,0.00043287,8]
[420329507,1775971896587,-500.0,0.00043287,8]
[420329508,1775971896605,-1444.55,0.00043287,8]
[420329509,1775971896615,-624.84,0.00043287,8]
[420329510,1775971896630,-1463.92,0.00043287,8]
[420329511,1775971896648,-1146.76,0.00043287,8]
[420329512,1775971896658,-675.5,0.00043287,8]
[420329513,1775971896676,-887.48,0.00043287,8]
[420329514,1775971896694,-500.0,0.00043287,8]
[420329515,1775971896704,-1086.28,0.00043287,8]
[420329516,1775971896718,-2038.18,0.00043287,8]
[420329517,1775971896737,-516.79,0.00043287,8]
[420329518,1775971896747,-928.97,0.00043287,8]
[420329519,1775971896760,-592.59,0.00043287,8]
[420329520,1775971896781,-502.42,0.00043287,8]
[420329521,1775971896792,-1810.69,0.00043287,8]
[420329522,1775971896811,-527.58,0.00043287,8]
[420329523,1775971896829,-2182.35,0.00043287,8]
[420329524,1775971896839,-1127.54,0.00043288,120]
[420329525,1775971896857,-152.0,0.000433,120]
[420329526,1775971896873,-151.0,0.000433,60]
[420329527,1775971896888,-151.0,0.000433,60]
[420329528,1775971896901,-151.0,0.000433,60]
[420329529,1775971896919,-150.0,0.00043308,120]
[420329530,1775971896928,-3000.0,0.00043329,90]
[420329531,1775971896959,-364.08195717,0.00043333,30]
[420329532,1775971896969,-5014.57142743,0.00043337,13]
[420329533,1775971896982,-6154.0,0.00043338,120]
[420329534,1775971897003,-12500.0,0.00043338,120]
[420329535,1775971897016,-2355.71,0.00043338,120]
[420329536,1775971897026,-300.0,0.00043339,120]
[420329537,1775971897051,-300.0,0.00043339,120]
[420329538,1775971897064,-96704.98953373,0.00043344,4]
[420329539,1775971897087,-300.0,0.00043351,2]
[420329540,1775971897115,-300.0,0.00043351,2]
[420329541,1775971897140,-300.0,0.00043351,2]
[420329542,1775971897153,-300.0,0.00043351,2]
[420329543,1775971897163,-300.0,0.00043351,2]
[420329544,1775971897180,-300.0,0.00043351,2]
[420329545,1775971897193,-300.19,0.00043351,2]
[420329546,1775971897203,-500.0,0.00043377,45]
[420329547,1775971897216,-3000.0,0.00043397,120]
[420329548,1775971897226,-2500.0,0.000434,120]
[420329549,1775971897236,-151.0,0.000434,120]
[420329550,1775971897246,-3000.0,0.00043417,60]
[420329551,1775971897260,-157.08828878,0.00043427,2]
[420329552,1775971897272,-2071.20930673,0.00043435,120]
[420329553,1775971897282,-300.0,0.00043439,120]
[420329554,1775971897292,-300.0,0.00043439,120]
[420329555,1775971897302,-500.0,0.0004344,120]
[420329556,1775971897317,-119311.43621963,0.00043444,4]
[420329557,1775971897329,-3000.0,0.00043445,30]
[420329558,1775971897339,-1000.0,0.00043446,120]
[420329559,1775971897349,-300.0,0.00043452,120]
[420329560,1775971897364,-371.1,0.00043466,120]
[420329561,1775971897375,-1000.0,0.00043467,120]
[420329562,1775971897389,-492.83375056,0.00043474,60]
[420329563,1775971897404,-500.0,0.0004348,120]
[420329564,1775971897415,-1000.0,0.00043491,120]
[420329565,1775971897429,-500.0,0.000435,120]
[420329566,1775971897450,-500.0,0.000435,120]
[420329567,1775971897465,-150.0,0.000435,120]
[420329568,1775971897482,-176.92350278,0.000435,120]
[420329569,1775971897495,-300.0,0.000435,120]
[420329570,1775971897509,-285.71549678,0.000435,120]
[420329571,1775971897531,-15000.0,0.000435,7]
[420329572,1775971897548,-2000.0,0.000435,60]
[420329573,1775971897563,-501.33095102,0.000435,120]
[420329574,1775971897577,-200000.0,0.000435,60]
[420329575,1775971897597,-758.20242805,0.000435,120]
[420329576,1775971897612,-3317.19511607,0.000435,30]
[420329577,1775971897628,-223.88690886,0.000435,120]
[420329578,1775971897639,-500.0,0.000435,45]
[420329579,1775971897654,-1775.2827,0.000435,90]
[420329580,1775971897676,-20000.0,0.000435,30]
[420329581,1775971897688,-192.0,0.000435,120]
[420329582,1775971897706,-500.0,0.000435,120]
[420329583,1775971897725,-1106.28248561,0.00043523,30]
[420329584,1775971897741,-222.38,0.00043523,120]
[420329585,1775971897764,-185.752306,0.0004353,120]
[420329586,1775971897776,-151.0,0.0004353,120]
[420329587,1775971897790,-151.0,0.0004353,120]
[420329588,1775971897807,-151.0,0.0004353,120]
[420329589,1775971897820,-151.0,0.0004353,120]
[420329590,1775971897835,-151.0,0.0004353,120]
[420329591,1775971897854,-151.0,0.0004353,120]
[420329592,1775971897869,-151.0,0.0004353,120]
[420329593,1775971897890,-151.0,0.0004353,120]
[420329594,1775971897902,-151.0,0.0004353,120]
[420329595,1775971897913,-151.0,0.0004353,120]
[420329596,1775971897948,-271.346779,0.0004353,120]
[420329597,1775971897959,-153.009789,0.0004353,120]
[420329598,1775971897993,-151.0,0.0004353,120]
[420329599,1775971898009,-151.0,0.0004353,120]
[420329600,1775971898036,-151.0,0.0004353,120]
[420329601,1775971898053,-151.0,0.0004353,120]
[420329602,1775971898085,-151.0,0.0004353,120]
[420329603,1775971898113,-151.0,0.0004353,120]
[420329604,1775971898135,-151.0,0.0004353,120]
[420329605,1775971898152,-151.0,0.0004353,120]
[420329606,1775971898173,-151.0,0.0004353,120]
[420329607,1775971898185,-151.0,0.0004353,120]
[420329608,1775971898197,-492.83375056,0.0004353,60]
[420329609,1775971898211,-401.09576505,0.00043539,120]
[420329610,1775971898222,-26000.0,0.0004356,120]
[420329611,1775971898233,-500.0,0.00043561,8]
[420329612,1775971898246,-1626.02,0.00043561,8]
[420329613,1775971898258,-1442.42,0.00043561,8]
[420329614,1775971898270,-2122.61,0.00043561,8]
[420329615,1775971898285,-847.7,0.00043561,8]
[420329616,1775971898295,-1688.37,0.00043561,8]
[420329617,1775971898308,-651.55,0.00043561,8]
[420329618,1775971898319,-813.07,0.00043561,8]
[420329619,1775971898328,-711.78,0.00043561,8]
[420329620,1775971898338,-552.86,0.00043561,8]
[420329621,1775971898354,-560.42,0.00043561,8]
[420329622,1775971898364,-1100.29,0.00043561,8]
[420329623,1775971898374,-500.0,0.00043561,8]
[420329624,1775971898387,-1444.55,0.00043561,8]
[420329625,1775971898400,-624.84,0.00043561,8]
[420329626,1775971898410,-1463.92,0.00043561,8]
[420329627,1775971898424,-1146.76,0.00043561,8]
[420329628,1775971898441,-675.5,0.00043561,8]
[420329629,1775971898451,-887.48,0.00043561,8]
[420329630,1775971898465,-500.0,0.00043561,8]
[420329631,1775971898482,-1086.28,0.00043561,8]
[420329632,1775971898497,-2038.18,0.00043561,8]
[420329633,1775971898511,-516.79,0.00043561,8]
[420329634,1775971898522,-928.97,0.00043561,8]
[420329635,1775971898533,-592.59,0.00043561,8]
[420329636,1775971898552,-502.42,0.00043561,8]
[420329637,1775971898562,-1810.69,0.00043561,8]
[420329638,1775971898590,-527.58,0.00043561,8]
[420329639,1775971898605,-2182.35,0.00043561,8]
[420329640,1775971898617,-371.1,0.00043566,120]
[420329641,1775971898630,-1000.0,0.00043568,120]
[420329642,1775971898639,-500.0,0.00043569,120]
[420329643,1775971898654,-200.0,0.00043569,120]
[420329644,1775971898666,-825.0,0.00043569,60]
[420329645,1775971898677,-1757.32159937,0.00043584,120]
[420329646,1775971898687,-2167.24107137,0.00043584,120]
[420329647,1775971898702,-492.83375056,0.00043586,60]
[420329648,1775971898714,-500.0,0.00043597,120]
[420329649,1775971898725,-500.0,0.000436,120]
[420329650,1775971898740,-500.0,0.000436,120]
[420329651,1775971898750,-2000.0,0.000436,90]
[420329652,1775971898761,-20000.0,0.000436,30]
[420329653,1775971898782,-150.0,0.00043634,120]
[420329654,1775971898792,-1312.77,0.00043634,120]
[420329655,1775971898811,-150.0,0.00043636,120]
[420329656,1775971898821,-872.12,0.0004364,90]
[420329657,1775971898830,-492.83375056,0.00043642,60]
[420329658,1775971898842,-50428.0,0.0004365,60]
[420329659,1775971898862,-150.0,0.00043658,120]
[420329660,1775971898872,-371.1,0.00043666,120]
[420329661,1775971898885,-500.0,0.00043667,120]
[420329662,1775971898908,-492.83375056,0.00043698,60]
[420329663,1775971898921,-500.0,0.000437,120]
[420329664,1775971898930,-500.0,0.000437,120]
[420329665,1775971898952,-9454.03079736,0.000437,120]
[420329666,1775971898965,-461.03605787,0.000437,120]
[420329667,1775971898978,-1000.0,0.000437,120]
[420329668,1775971898991,-157.08828878,0.00043701,2]
[420329669,1775971899003,-656.14162503,0.00043706,2]
[420329670,1775971899013,-177.07388359,0.00043706,2]
[420329671,1775971899024,-2500.0,0.0004372,120]
[420329672,1775971899037,-500.0,0.0004374,45]
[420329673,1775971899049,-690544.2068,0.00043746,120]
[420329674,1775971899061,-1000.0,0.0004375,120]
[420329675,1775971899070,-492.83375056,0.00043754,60]
[420329676,1775971899082,-150.0,0.00043766,120]
[420329677,1775971899095,-371.1,0.00043766,120]
[420329678,1775971899105,-500.0,0.000438,120]
[420329679,1775971899115,-601.90460446,0.000438,120]
[420329680,1775971899127,-20000.0,0.000438,30]
[420329681,1775971899138,-511.99571162,0.000438,30]
[420329682,1775971899149,-200000.0,0.000438,65]
[420329683,1775971899160,-200000.0,0.000438,70]
[420329684,1775971899175,-160.89167757,0.000438,120]
[420329685,1775971899189,-354.53884978,0.000438,120]
[420329686,1775971899204,-151.2192053,0.000438,120]
[420329687,1775971899215,-332.74,0.000438,120]
[420329688,1775971899239,-825.95469,0.000438,30]
[420329689,1775971899254,-291.0,0.000438,72]
[420329690,1775971899276,-730.0,0.000438,2]
[420329691,1775971899292,-96704.98953373,0.000438,5]
[420329692,1775971899427,-5324.02999,0.00043806,30]
[420329693,1775971899469,-492.83375056,0.0004381,60]
[420329694,1775971899505,-5000.0,0.00043832,2]
[420329695,1775971899528,-585.46693074,0.00043835,120]
[420329696,1775971899555,-500.0,0.00043835,120]
[420329697,1775971899576,-540.65161691,0.00043835,120]
[420329698,1775971899588,-500.0,0.00043835,2]
[420329699,1775971899608,-500.0,0.00043835,2]
[420329700,1775971899621,-500.0,0.00043835,120]
[420329701,1775971899631,-631.52453286,0.00043835,120]
[420329702,1775971899643,-500.0,0.00043835,120]
[420329703,1775971899656,-512.4142778,0.00043835,120]
[420329704,1775971899668,-183.33271757,0.00043835,2]
[420329705,1775971899679,-1626.02,0.00043835,120]
[420329706,1775971899692,-1442.42,0.00043835,120]
[420329707,1775971899707,-2122.61,0.00043835,120]
[420329708,1775971899716,-847.7,0.00043835,120]
[420329709,1775971899726,-1688.37,0.00043835,120]
[420329710,1775971899743,-651.55,0.00043835,120]
[420329711,1775971899756,-813.07,0.00043835,120]
[420329712,1775971899765,-711.78,0.00043835,120]
[420329713,1775971899779,-552.86,0.00043835,120]
[420329714,1775971899796,-560.42,0.00043835,120]
[420329715,1775971899807,-1100.29,0.00043835,120]
[420329716,1775971899816,-500.0,0.00043835,120]
[420329717,1775971899826,-1444.55,0.00043835,120]
[420329718,1775971899844,-624.84,0.00043835,120]
[420329719,1775971899854,-1463.92,0.00043835,120]
[420329720,1775971899863,-1146.76,0.00043835,120]
[420329721,1775971899873,-675.5,0.00043835,120]
[420329722,1775971899888,-887.48,0.00043835,120]
[420329723,1775971899898,-500.0,0.00043835,120]
[420329724,1775971899907,-1086.28,0.00043835,120]
[420329725,1775971899918,-2038.18,0.00043835,120]
[420329726,1775971899931,-516.79,0.00043835,120]
[420329727,1775971899941,-928.97,0.00043835,120]
[420329728,1775971899950,-502.42,0.00043835,120]
[420329729,1775971899960,-592.59,0.00043835,120]
[420329730,1775971899972,-1810.69,0.00043835,120]
[420329731,1775971899981,-527.58,0.00043835,120]
[420329732,1775971899994,-2182.35,0.00043835,60]
[420329733,1775971900003,-10000.0,0.00043836,30]
[420329734,1775971900025,-1000.0,0.00043836,120]